Workbook

Sheet Sheet1
A1: 城市 | B1: 年度 | C1: 地区生产总值（亿元） | D1: 第一产业占比 | E1: 第二产业占比 | F1: 第三产业占比 | G1: 人均地区生产总值（按常住人口）（万元） | H1: 人均地区生产总值（按户籍人口）（万元） | I1: 地方一般公共预算收入（亿元） | J1: 地方一般公共预算支出（亿元） | K1: 教育支出（亿元） | L1: 科学技术支出（亿元） | M1: 年末常住人口（万人） | N1: 年末户籍人口（万人） | O1: 行政区域土地面积（平方千米） | P1: 人口密度（人/平方千米） | Q1: 城镇化率（%）城镇人口/总人口 | R1: 年末耕地总资源 | S1: 建成区面积（平方千米） | T1: 固定资产投资（亿元） | U1: 房地产开发投资完成额 | V1: 住宅销售面积（万平方米） 实际为房地产销售面积 | W1: 房地产销售金额（亿元） | X1: 社会消费品零售总额（亿元） | Y1: 当年实际使用外资金额（亿美元） | Z1: 人均城市道路面积（交通节点数量） | AA1: 空气质量达标天数 空气优良天数 | AB1: 住宅销售面积（万平方米） | AC1: R&D | AD1: 工业用电情况（万千瓦时） | AE1: 规模以上工业企业数 | AF1: 规模以上工业企业总产值 | AG1: 政策影响 | AH1: 工业用地（万元/㎡） | AI1: 商服用地（万元/㎡） | AJ1: 住宅用地（万元/㎡） | AK1: 其他用地（万元/㎡）
A2: 杭州市上城区 | B2: 2023 | C2: 2668.48 | D2: 0 | E2: 23.3 | F2: 76.7 | G2: 19.3298 | H2: =C2/N2 -> 29.54800133 | I2: 244.94 | J2: 155.32 | K2: =J2*0.282 -> 43.80024 | L2: 13.63 | M2: 139 | N2: 90.31 | O2: 122 | P2: =M2*10000/O2 -> 11393.44262 | Q2: 100 | R2: 0 | V2: 175.7 | W2: 825.89 | X2: 1106.95 | Y2: 11.93 | AA2: =365*0.851 -> 310.615 | AH2: 0.13 | AI2: 3.73 | AJ2: 6.57 | AK2: 0.91
A3: 杭州市上城区 | B3: 2022 | C3: 2560.53 | D3: 0 | E3: 26.2 | F3: 73.8 | G3: 18.9248 | H3: 29.00464431 | I3: 210.56 | J3: 152.21 | K3: =J3*0.249 -> 37.90029 | L3: 11.85 | M3: 137.1 | N3: 88.28 | O3: 122 | P3: =M3*10000/O3 -> 11237.70492 | Q3: 100 | R3: 0 | U3: =U4*1.012 -> 0 | V3: 186.37 | W3: 904.26 | X3: 1073.09 | Y3: 10.9 | AA3: 295 | AB3: 144.93 | AD3: 131761 | AE3: 94 | AF3: 1001.1883 | AH3: 0.13 | AI3: 3.73 | AJ3: 6.57 | AK3: 0.91
A4: 杭州市上城区 | B4: 2021 | C4: 2417.51 | D4: 0 | E4: 25 | F4: 75 | G4: 18.1767 | H4: 27.9125967 | I4: 201.38 | J4: 140.78 | K4: =J4*0.256 -> 36.03968 | L4: 8.1561 | M4: 133.5 | N4: 86.61 | O4: 122 | P4: =M4*10000/O4 -> 10942.62295 | Q4: 100 | R4: 0 | U4: =U5*0.881 -> 0 | V4: 208.28 | W4: 860.07 | X4: 976.86 | Y4: 6.27 | AB4: 176.6 | AD4: 186373 | AE4: 97 | AF4: 1071.528 | AH4: 0.12 | AI4: 5.92 | AJ4: 6.15 | AK4: 0
A5: 杭州市上城区 | B5: 2020 | C5: 1192.06 | D5: 0 | E5: 34.5 | F5: 65.5 | G5: =C5/M5 -> 33.32569192 | H5: 37.1597884 | I5: 79.46 | J5: 52.43 | K5: 11.75 | L5: 2 | M5: 35.77 | N5: 32.0793 | O5: 26.06 | P5: 13760 | Q5: 100 | R5: 0 | T5: =T6*0.932 -> 130.75631 | V5: 10.4 | X5: 333.4 | Y5: 9.0261 | AA5: 313 | AB5: 10.08 | AD5: 62179 | AE5: 37 | AF5: 734.9208 | AH5: 0.18 | AI5: 3.14 | AJ5: 6.78 | AK5: 0
A6: 杭州市上城区 | B6: 2019 | C6: 1171.41 | D6: 0 | E6: 34.1 | F6: 65.9 | G6: 33.95391304 | H6: 36.71682772 | I6: 85.13 | J6: 52.55 | K6: 10.61 | L6: 1.6 | M6: 34.5 | N6: 31.9039 | O6: 26.06 | P6: 13260 | Q6: 100 | R6: 0 | T6: =T7*1.011 -> 140.29647 | U6: 108.9315 | V6: 20.7 | X6: 331.96 | Y6: 4.4942 | AA6: 252 | AB6: 15.2 | AD6: 48366 | AE6: 37 | AF6: 765.5947 | AH6: 0 | AI6: 5.11 | AJ6: 5.2 | AK6: 5.86
A7: 杭州市上城区 | B7: 2018 | C7: 1102.7 | D7: 0 | E7: 36.7 | F7: 63.3 | G7: 31.96231884 | H7: 34.59993725 | I7: 80.65 | J7: 40.59 | K7: 8.79 | L7: 1.3691 | M7: 34.5 | N7: 31.87 | O7: 26.06 | P7: 13260 | Q7: 100 | R7: 0 | T7: 138.77 | U7: =U8*1.131 -> 107.85216 | V7: 22.4 | X7: 370.3 | Y7: 2.27 | AA7: 252 | AB7: 22.11 | AD7: 71327 | AE7: 33 | AF7: 775.5636
A8: 杭州市上城区 | B8: 2017 | C8: 999.56 | D8: 0 | E8: 38.85509624 | F8: 61.14490376 | G8: 28.72298851 | H8: 31.19725343 | I8: 73.19 | J8: 40.08 | K8: 8.9952 | L8: 1.4198 | M8: 34.8 | N8: 32.04 | O8: 18 | P8: 19333 | Q8: 100 | R8: 0 | T8: 121.4556 | U8: 95.36 | X8: 396.06 | AD8: 69756 | AE8: 33 | AF8: 758.4529
A9: 杭州市上城区 | B9: 2016 | C9: 897.65 | D9: 0 | E9: 39.43407787 | F9: 60.56592213 | G9: 25.41477916 | H9: 27.45946773 | I9: 72.39 | J9: 32.98 | K9: 6.8365 | L9: 1.324 | M9: 35.32 | N9: 32.69 | O9: 18 | P9: 19622 | Q9: 100 | R9: 0 | T9: 109.0808 | U9: 69.16 | X9: 379.47 | Y9: 2.36 | AD9: 65053 | AE9: 43 | AF9: 715.7725
A10: 杭州市上城区 | B10: 2015 | C10: 808.99 | D10: 0 | E10: 42.02524135 | F10: 57.97475865 | G10: 22.91756374 | H10: 24.67185117 | I10: 66.46 | J10: 30.43 | K10: =K9/1.085 -> 6.300921659 | L10: =L9/1.146 -> 1.155322862 | M10: 35.3 | N10: 32.79 | O10: 18 | P10: 19611 | Q10: 100 | R10: 0 | T10: 88.5811 | U10: 65.03 | X10: 341.81 | AD10: 103140 | AE10: 50 | AF10: 726.4098
A11: 杭州市上城区 | B11: 2014 | C11: 800.59 | D11: 0 | E11: 44.4047515 | F11: 55.5952485 | G11: 22.69889424 | H11: 24.28237792 | I11: 58.03 | J11: 23.22 | K11: 5.7 | L11: 1.15 | M11: 35.27 | N11: 32.97 | O11: 18 | P11: 19594 | Q11: 100 | R11: 0 | T11: 77.6441 | U11: 43.5 | X11: 303.57 | AE11: 49 | AF11: 709.7986
A12: 杭州市拱墅区 | B12: 2023 | C12: 2091.5 | D12: 0 | E12: 9.2 | F12: 90.8 | G12: 17.69 | H12: =C12/N12 -> 23.3765508 | I12: 199.18 | J12: 132.23 | K12: 35.7 | L12: 9.33 | M12: 118.8 | N12: 89.47 | O12: 119 | P12: =M12*10000/O12 -> 9983.193277 | Q12: 100 | T12: =T13*1.148 -> 843.206 | U12: =U13*1.32 -> 433.8461548 | V12: 189.3 | X12: 1363.9 | Y12: 7.45 | AA12: 308 | AH12: 0.11 | AI12: 1.97 | AJ12: 5.48 | AK12: 0
A13: 杭州市拱墅区 | B13: 2022 | C13: 2000.1 | D13: 0 | E13: 9.7 | F13: 90.3 | G13: =C13/M13 -> 16.99320306 | H13: 22.56430505 | I13: 184.29 | J13: 134.2 | K13: 33.17 | L13: 8.1 | M13: 117.7 | N13: 88.64 | O13: 119 | P13: =M13*10000/O13 -> 9890.756303 | Q13: 100 | R13: 57 | T13: 734.5 | U13: =U14*1.114 -> 328.6713294 | V13: 180 | X13: 1312.9 | Y13: 2.71 | AA13: 304 | AD13: 25395.02 | AE13: 97 | AF13: 299.4529 | AH13: 0.11 | AI13: 1.97 | AJ13: 5.48 | AK13: 0
A14: 杭州市拱墅区 | B14: 2021 | C14: 1949.8 | D14: 0 | E14: 9.8 | F14: 90.2 | G14: 17.02882096 | H14: 22.23768248 | I14: 179.54 | J14: 118.79 | K14: 30.84 | L14: 7.05 | M14: 114.5 | N14: 87.68 | O14: 119 | P14: =M14*10000/O14 -> 9621.848739 | Q14: 100 | R14: 58 | T14: 655.2 | U14: =U15*1.035 -> 295.0371 | V14: 206.36 | X14: 1273.38 | Y14: 8.63 | AA14: 321 | AE14: 88 | AF14: 278.1977 | AH14: 0.3 | AI14: 2.33 | AJ14: 5.49 | AK14: 1.32
A15: 杭州市拱墅区 | B15: 2020 | C15: 668.6 | D15: 0 | E15: 18.8 | F15: 81.2 | G15: 10.51257862 | H15: 16.15174816 | I15: 86.73 | J15: 47.43 | K15: 12.06 | L15: 2.89 | M15: 63.6 | N15: 41.3949 | O15: 69 | P15: 9189 | Q15: 100 | R15: 54 | T15: =T16*0.874 -> 443.3867777 | U15: 285.06 | V15: =V16*0.737 -> 73.89171212 | X15: 609 | Y15: 8.12 | AA15: 334 | AE15: 78 | AF15: 259.8867 | AH15: 0.25 | AI15: 1.42 | AJ15: 5.71 | AK15: 0.29
A16: 杭州市拱墅区 | B16: 2019 | C16: 662.16 | D16: 0 | E16: 21.1 | F16: 78.9 | G16: 11.42443064 | H16: 16.68754206 | I16: 91.19 | J16: 42.07 | K16: 10.29 | L16: 1.96 | M16: 57.96 | N16: 39.6799 | O16: 69 | P16: 8366 | Q16: 100 | T16: =T17*1.258 -> 507.307526 | U16: =U15/0.897 -> 317.7926421 | V16: =V17*1.225 -> 100.260125 | X16: 620.73 | Y16: 6.04 | AA16: 287 | AE16: 77 | AF16: 281.8251 | AH16: 0.26 | AI16: 3.48 | AJ16: 0 | AK16: 0.38
A17: 杭州市拱墅区 | B17: 2018 | C17: 581.81 | D17: 0 | E17: 18.6 | F17: 81.4 | G17: 10.13606272 | H17: 15.27545493 | I17: 84.4 | J17: 37.6 | K17: 9.1 | L17: 1.4 | M17: 57.4 | N17: 38.0879 | O17: 69 | P17: 8294 | Q17: 100 | T17: =T18*1.212 -> 403.265124 | U17: =U16/1.147 -> 277.0642041 | V17: =V18*0.5 -> 81.845 | X17: 565.44 | Y17: 7.23 | AA17: 269 | AE17: 74 | AF17: 220.4736
A18: 杭州市拱墅区 | B18: 2017 | C18: 525.41 | D18: 0 | E18: 17.4 | F18: 82.6 | G18: 9.348932384 | H18: 14.52978217 | I18: 78.14 | J18: 34.8 | K18: 8.4 | L18: 1.3 | M18: 56.2 | N18: 36.1609 | O18: 88 | P18: 6386 | Q18: 100 | T18: 332.727 | U18: 259.35 | V18: 163.69 | W18: =163.69*3.1121 -> 509.419649 | X18: 556.19 | Y18: 3.83 | AA18: 271 | AE18: 75 | AF18: 188.1421
A19: 杭州市拱墅区 | B19: 2016 | C19: 467.76 | D19: 0 | E19: 18.25 | F19: 81.75 | G19: 8.037113402 | H19: 13.53613224 | I19: 79.66 | J19: 32.19 | K19: 7.32 | L19: =L18/1.103 -> 1.178603808 | M19: 58.2 | N19: 34.5564 | O19: 88 | P19: 6614 | Q19: 100 | T19: 446.7059 | U19: 329.61 | V19: 149.62 | W19: 391.1 | X19: 508.01 | Y19: 3.81 | AA19: 260 | AE19: 83 | AF19: 175.7644
A20: 杭州市拱墅区 | B20: 2015 | C20: 430.86 | D20: 0 | E20: 22.12 | F20: 77.88 | G20: 7.545709282 | H20: 12.91577736 | I20: 69.38 | J20: 32.19 | K20: 6.29 | L20: 5 | M20: 57.1 | N20: 33.3592 | O20: 88 | P20: 6489 | Q20: 100 | T20: 456.5672 | U20: 371.29 | V20: 141.86 | W20: =W19/1.154 -> 338.9081456 | X20: 461.75 | Y20: 4.59 | AA20: 242 | AE20: 95 | AF20: 181.6628
A21: 杭州市拱墅区 | B21: 2014 | C21: 391.4 | D21: 0 | E21: 25.11 | F21: 74.89 | H21: 11.9854729 | I21: 60.39 | J21: 24.37 | K21: 5.22 | L21: 0.86 | N21: 32.6562 | O21: 88 | P21: 6432 | Q21: 100 | T21: 383.8785 | U21: 298.24 | V21: 102.97 | X21: 376.26 | Y21: 4.1 | AA21: 228 | AE21: 100 | AF21: 309.4611
A22: 杭州市西湖区 | B22: 2023 | C22: 2087.4 | D22: 0.2 | E22: 6.9 | F22: 92.9 | G22: 17.86 | H22: 25.58088235 | I22: 233.8 | J22: 169.3 | K22: 57.4 | M22: 117.1 | N22: 81.6 | O22: 312.43 | P22: 3749 | Q22: 97.5 | R22: 2123 | S22: 10468 | T22: 555.2 | V22: 119.4 | W22: 391.7 | X22: 906.3 | Y22: 4 | AA22: 308 | AC22: 85.86 | AF22: 343.2 | AH22: 0.13 | AI22: 1.87 | AJ22: 3.72 | AK22: 0
A23: 杭州市西湖区 | B23: 2022 | C23: 1970.1 | D23: 0.16 | E23: 7.81 | F23: 92.03 | G23: 17.2438 | H23: 24.6013 | I23: 233.5 | J23: 149.8 | K23: 35.7 | M23: 116.7 | N23: 80.5 | O23: 312.43 | P23: =M23*10000/O23 -> 3735.236693 | Q23: 97.4 | R23: 2123 | S23: 10448 | T23: 484 | V23: 67.6 | W23: 217.4 | X23: 845.7 | Y23: 7.01 | AA23: 304 | AC23: 81 | AE23: 154 | AF23: 394.7927 | AH23: 0.13 | AI23: 1.87 | AJ23: 3.72 | AK23: 0
A24: 杭州市西湖区 | B24: 2021 | C24: 1904.2 | D24: 0.16 | E24: 7.56 | F24: 92.28 | G24: 17.2405 | H24: 24.2582 | I24: 175.7 | J24: 127 | K24: 45.4 | M24: 111.8 | N24: 79.6 | O24: 312.43 | P24: =M24*10000/O24 -> 3578.401562 | Q24: 97.1 | R24: 2112 | S24: 10394 | T24: 472.1 | V24: 91.8 | W24: 314.1 | X24: 787.6 | Y24: 8.3 | AA24: 321 | AC24: 68.55 | AE24: 151 | AF24: 379.2655 | AH24: 0.12 | AI24: 3.25 | AJ24: 3.11 | AK24: 0
A25: 杭州市西湖区 | B25: 2020 | C25: 1587.6 | D25: 0.19 | E25: 7.36 | F25: 92.45 | G25: 14.7819 | H25: 20.5128 | I25: 162 | J25: 190.6 | K25: 27.7 | M25: 109.1 | N25: 77.4 | O25: 309 | P25: 3603 | Q25: 97 | R25: 2133 | S25: 10381 | T25: 468.9 | V25: 58.4 | W25: 204.8 | X25: 689.7 | Y25: 10.1 | AA25: 334 | AC25: 67.7 | AE25: 134 | AF25: 297.6682 | AH25: 0.11 | AI25: 1.43 | AJ25: 2.34 | AK25: 1.25
A26: 杭州市西湖区 | B26: 2019 | C26: 1415.83 | D26: 0.18 | E26: 8.76 | F26: 91.06 | G26: 16.0161 | H26: 19.2725 | I26: 150.64 | J26: 93.01 | K26: 20.36 | M26: 90.8 | N26: 74.9 | O26: 309 | P26: 3031 | R26: 2164 | S26: 10347 | T26: 457.6 | V26: 54.66 | W26: 183.28 | X26: 711.7 | Y26: 7.02 | AA26: 287 | AE26: 123 | AF26: 2714.6058 | AH26: 0.31 | AI26: 1.89 | AJ26: 0 | AK26: 0.1
A27: 杭州市西湖区 | B27: 2018 | C27: 1202.27 | D27: 0.3 | E27: 9.2 | F27: 90.5 | G27: 14.2196 | H27: 17.015 | I27: 139.41 | J27: 79.24 | K27: 17.07 | M27: 86 | N27: 72.02 | O27: 309 | P27: 2876 | R27: 3672.92 | S27: 6735.19 | T27: 482.3 | V27: 102.33 | W27: 293.74 | X27: 625.76 | Y27: 6.5693 | AA27: 269 | AE27: 126 | AF27: 232.7626
A28: 杭州市西湖区 | B28: 2017 | C28: 1085.54 | D28: 0.3 | E28: 10 | F28: 89.7 | G28: 13.663 | H28: 16.441 | I28: 125.98 | J28: 74.13 | K28: 14.01 | M28: 83.1 | N28: 69.29 | O28: 309 | P28: 3270 | R28: 3672.92 | S28: 6735.19 | T28: 488.98 | U28: 238.65 | V28: 143.74 | W28: 364.81 | X28: 627.43 | Y28: 6.5 | AA28: 271 | AE28: 125 | AF28: 224.6361
A29: 杭州市西湖区 | B29: 2016 | C29: 1001.61 | D29: 0.4 | E29: 9.4 | F29: 90.2 | G29: 12.0452 | H29: 14.7223 | I29: 123.11 | J29: 69.59 | K29: 14.6 | M29: 81.37 | N29: 67.09 | O29: 263 | P29: 3210 | R29: 3672.92 | S29: 6735.19 | T29: 405.87 | U29: 198.92 | V29: 176 | W29: 358 | X29: 567.62 | Y29: 6.48 | AA29: 260 | AE29: 140 | AF29: 216.2629
A30: 杭州市西湖区 | B30: 2015 | C30: 888.19 | D30: 0.5 | E30: 11.7 | F30: 87.8 | G30: 10.9952 | H30: 13.6339 | I30: 111.65 | J30: 63 | K30: 14.73 | M30: 80.27 | N30: 65.64 | O30: 263 | P30: 3190 | R30: 3700.73 | S30: 6576.98 | T30: 506.45 | U30: 265.4 | V30: 116.8 | W30: 224.7 | X30: 513.9 | Y30: 7.99 | AA30: 242 | AE30: 148 | AF30: 208.8648
A31: 杭州市西湖区 | B31: 2014 | C31: 799.53 | D31: 0.5 | E31: 13.3 | F31: 86.2 | G31: 9.9666 | H31: 12.5373 | I31: 90.55 | J31: 47.92 | K31: 10.22 | M31: 79.18 | N31: 64.6 | O31: 263 | P31: 3183 | R31: 3696.78 | S31: 6558.79 | T31: 472.39 | U31: 227.42 | V31: 96.07 | W31: 164.65 | X31: 417.82 | Y31: 6.73 | AA31: 228 | AE31: 164 | AF31: 221.9084
A32: 杭州市萧山区 | B32: 2023 | C32: 2230.69 | D32: 2.6 | E32: 36.9 | F32: 60.5 | G32: 10.4974 | H32: =C32/N32 -> 17.31095763 | I32: 332 | J32: 328.16 | K32: 68.9 | M32: 214 | N32: 128.86 | O32: 931 | P32: =M32*10000/O32 -> 2298.603652 | Q32: 91.3 | R32: 28575 | S32: 132.6 | T32: 1589.25 | U32: 940.25 | V32: 250.25 | X32: 1006.21 | Y32: 53.16 | AA32: 308 | AD32: 135.86 | AH32: 0.08 | AI32: 1.43 | AJ32: 2.63 | AK32: 0
A33: 杭州市萧山区 | B33: 2022 | C33: 2063.95 | D33: 2.9 | E33: 38.8 | F33: 58.3 | G33: 9.9085 | H33: =C33/N33 -> 16.35718814 | I33: 318.31 | J33: 343.13 | K33: 70.18 | M33: 211 | N33: 126.18 | O33: 931 | P33: 2266 | Q33: 81.1 | R33: 28575 | S33: 128.32 | T33: 1510.56 | U33: 862.53 | V33: 276.5 | X33: 905.68 | Y33: 10.6032 | AA33: 304 | AB33: 223.9564 | AD33: 1308339 | AE33: 1626 | AF33: 3027.7121 | AH33: 0.08 | AI33: 1.43 | AJ33: 2.63 | AK33: 0
A34: 杭州市萧山区 | B34: 2021 | C34: 2011.62 | D34: 2.9 | E34: 38.5 | F34: 58.6 | G34: 9.9228 | H34: =C34/N34 -> 16.22143376 | I34: 343.03 | J34: 324.23 | K34: 62.63 | L34: 17.4928 | M34: 205.6 | N34: 124.01 | O34: 931 | P34: 2208 | Q34: 80.9 | R34: 28759 | S34: 125.23 | T34: 1372.1 | U34: 786.72 | V34: 488.04 | X34: 813.43 | Y34: 8.8588 | AA34: 321 | AB34: 419.2273 | AD34: 1404376 | AE34: 1616 | AF34: 2979.0515 | AH34: 0.07 | AI34: 1.24 | AJ34: 3.65 | AK34: 0.97
A35: 杭州市萧山区 | B35: 2020 | C35: 1828.47 | D35: 3.2 | E35: 37.9 | F35: 58.9 | G35: 9.2395 | H35: 15.23 | I35: 300.03 | J35: 275.65 | K35: =K34/1.102 -> 56.83303085 | L35: 14.5631 | M35: 201.6 | N35: 121.2012 | O35: 931 | P35: 2165.41 | Q35: 80.8 | R35: 29109 | S35: 120.73 | T35: =T34/1.13 -> 1214.247788 | U35: 734.53 | V35: 336.77 | X35: 719.97 | Y35: 8.4151 | AA35: 334 | AB35: 297.4659 | AD35: 1290989 | AE35: 1480 | AF35: 2504.2895 | AH35: 0.07 | AI35: 1.28 | AJ35: 3.63 | AK35: 0.29
A36: 杭州市萧山区 | B36: 2019 | C36: 1847.66 | D36: 3.2 | E36: 41.5 | F36: 55.3 | G36: 9.7167 | H36: 15.7 | I36: 267.66 | J36: 275.43 | K36: 51.91 | L36: 9.9666 | M36: 194.5 | N36: 118.9323 | O36: 931 | P36: =M36*10000/O36 -> 2089.15145 | Q36: 80.79 | R36: 29728 | S36: 116.05 | T36: 1076.4557 | U36: 674.01 | V36: 270.9 | X36: 771.7693 | Y36: 9.2374 | AA36: 287 | AB36: 238.7946 | AC36: 54.51 | AD36: 1355161 | AE36: 1429 | AF36: 2743.51 | AH36: 0.07 | AI36: 2.7 | AJ36: 3.72 | AK36: 0
A37: 杭州市萧山区 | B37: 2018 | C37: 1802.08 | D37: 3 | E37: 40.3 | F37: 56.7 | G37: 11.7976 | H37: 15.6308 | I37: 230.01 | J37: 231.21 | K37: 49.176 | L37: 8.0614 | M37: 186.7 | N37: 116.415 | O37: 931 | P37: =M37*10000/O37 -> 2005.370569 | S37: 113.69 | T37: 965.5985 | U37: 631.4028 | V37: 333.7123 | X37: 701.9204 | Y37: 10.0892 | AA37: 269 | AB37: 259.857 | AD37: 1361999 | AE37: 1575 | AF37: 2732.7597 | AH37: 0.06 | AI37: 1.94 | AJ37: 4.07 | AK37: 0
A38: 杭州市萧山区 | B38: 2017 | C38: 1711.8 | D38: 2.9 | E38: 37.7 | F38: 59.4 | G38: 11.9916 | H38: 16.4319 | I38: 188.07 | J38: 206.29 | K38: 44.1252 | L38: 8.309 | M38: 145.4 | N38: 114.166 | O38: 1420 | P38: =M38*10000/O38 -> 1023.943662 | S38: 97.47 | T38: 886.22 | U38: 545.2956 | V38: 393.7793 | X38: 649.39 | Y38: 8.79 | AA38: 271 | AB38: 313.129 | AD38: 1342025 | AE38: 1544 | AF38: 2564.2848 | AH38: 0.08 | AI38: 1.68 | AJ38: 3.44 | AK38: 0
A39: 杭州市萧山区 | B39: 2016 | C39: 1632.18 | D39: 3.5 | E39: 47.2 | F39: 49.3 | H39: 14.5912 | I39: 163.7 | J39: 158.75 | K39: 43.3599 | L39: 7.3444 | M39: 140.1 | N39: 112.4 | O39: 1420 | P39: 1107 | S39: 90.68 | T39: 800.31 | U39: 391.8271 | V39: 394.0294 | X39: 635.04 | Y39: 10.17 | AA39: 260 | AB39: 314.166 | AD39: 1718260 | AE39: 1605 | AF39: 2611.3638 | AH39: 0.06 | AI39: 0.34 | AJ39: 2.45 | AK39: 0
A40: 杭州市萧山区 | B40: 2015 | C40: 1802.02 | D40: 3.5 | E40: 49.9 | F40: 46.6 | H40: 14.309 | I40: 160.08 | J40: 160.98 | K40: 35.2096 | L40: 8.7617 | M40: 156.1 | N40: 126.33 | O40: 1420 | P40: 1099 | S40: 88.23 | T40: 963.12 | U40: 330.1073 | V40: 236.8793 | X40: 573.9163 | Y40: 14.9926 | AA40: 242 | AB40: 211.1156 | AD40: 1736248 | AE40: 1742 | AF40: 3791.2714 | AH40: 0.09 | AI40: 0.36 | AJ40: 1.52 | AK40: 0
A41: 杭州市萧山区 | B41: 2014 | C41: 1727.6336 | D41: 3.5 | E41: 54.1 | F41: 42.4 | H41: 13.8309 | I41: 133.85 | J41: 120.2 | K41: 32.7939 | L41: 4.4371 | M41: 154.2 | N41: 125.54 | O41: 1420 | P41: 1086 | S41: 54.58 | T41: 850.85 | U41: 318.7415 | V41: 144.3768 | X41: 515.6481 | Y41: 12.5852 | AA41: 228 | AB41: 114.7028 | AD41: 1739738 | AE41: 1846 | AF41: 4151.5589 | AH41: 0.05 | AI41: 0.53 | AJ41: 1.1 | AK41: 0.17
A42: 杭州市余杭区 | B42: 2023 | C42: 2936.43 | D42: 1.4 | E42: 11.2 | F42: 87.4 | I42: 416.68 | J42: 351.38 | K42: =J42*0.158 -> 55.51804 | M42: 140.5 | O42: 942 | Q42: 74.6 | T42: =T43*1.076 -> 0 | U42: =U43*1.317 -> 488.6395299 | V42: 239.1 | X42: 826.33 | Y42: 8.9 | AA42: =365*0.849 -> 309.885 | AB42: =AB43*1.074 -> 214.8 | AC42: =C42*0.0455 -> 133.607565 | AH42: 0.11 | AI42: 1.38 | AJ42: 2.97 | AK42: 1.01
A43: 杭州市余杭区 | B43: 2022 | C43: 2651.25 | D43: 1.6 | E43: 12.8 | F43: 85.6 | I43: 352.93 | J43: 334.49 | K43: =J43*0.151 -> 50.50799 | M43: 136.4 | N43: 72.91 | O43: 942 | Q43: 74.1 | R43: 17556 | T43: =T44*1.097 -> 0 | U43: 371.0247 | V43: 220.7 | W43: 681.1 | X43: 801.1 | Y43: 10.17 | AA43: 306 | AB43: 200 | AC43: 112.9 | AE43: 754 | AF43: 1033.0147 | AH43: 0.11 | AI43: 1.38 | AJ43: 2.97 | AK43: 1.01
A44: 杭州市余杭区 | B44: 2021 | C44: 2502.2 | D44: 1.6 | E44: 13.5 | F44: 84.9 | I44: 375.69 | J44: 335.61 | K44: =J44*0.125 -> 41.95125 | N44: 70.14 | O44: 942 | R44: 17214 | V44: 183.1 | W44: 669.5 | X44: 676.29 | Y44: 11.51 | AA44: 300 | AB44: 183.1 | AE44: 712 | AF44: 1036.6297 | AH44: 0.11 | AI44: 2.89 | AJ44: 1.95 | AK44: 0.09
A45: 杭州市余杭区 | B45: 2020 | C45: 3051.61 | D45: 1.7 | E45: 22.2 | F45: 76.1 | I45: 441.06 | J45: 413.64 | N45: 121.9 | O45: 1228 | P45: 1965 | R45: 17439 | T45: =T46*1.076 -> 1427.922539 | U45: =U46/0.956 -> 722.6246004 | V45: 418.3 | W45: 1091.1 | X45: 822.54 | Y45: 15.78 | AA45: 313 | AB45: 368.9 | AE45: 1277 | AF45: 2093.5233 | AH45: 0.23 | AI45: 1.36 | AJ45: 2.66 | AK45: 0.32
A46: 杭州市余杭区 | B46: 2019 | C46: 2824.02 | D46: 1.9 | E46: 23.1 | F46: 75 | H46: 24.99 | I46: 391.45 | J46: 376.73 | N46: 116.18 | O46: 1228 | P46: 1540 | R46: 17806 | T46: =T47*1.074 -> 1327.065557 | U46: =U47*1.067 -> 690.829118 | V46: 392.8 | W46: 922.2 | X46: =X45/1.085 -> 758.1013825 | Y46: 10.52 | AA46: =365*(0.855-0.148) -> 258.055 | AB46: 344.5 | AE46: 1203 | AF46: 1925.8869 | AH46: 0.16 | AI46: 0.69 | AJ46: 4.43 | AK46: 0.51
A47: 杭州市余杭区 | B47: 2018 | C47: 2312.45 | D47: 2.2 | E47: 27.2 | F47: 70.6 | H47: 21.62 | I47: 336.38 | J47: 342.54 | N47: 109.86 | O47: 1228 | P47: 1305 | T47: =T48*1.1 -> 1235.62901 | U47: =U48*1.103 -> 647.44997 | V47: 557.1 | W47: =557.1*1.783482 -> 993.5778222 | X47: 515.79 | Y47: 10.55 | AB47: 487.1 | AE47: 1155 | AF47: 1799.7067 | AH47: 0.08 | AI47: 1.17 | AJ47: 2.62 | AK47: 0.07
A48: 杭州市余杭区 | B48: 2017 | C48: 2034.4726 | D48: 503763 | E48: 5830116 | F48: 13980847 | H48: =C48/N48 -> 19.55283614 | I48: 280.01 | J48: 270.39 | N48: 104.05 | O48: 1222 | P48: 1208 | Q48: 56 | T48: 1123.2991 | U48: 586.99 | V48: 615.8 | W48: 1000.2 | X48: 481.26 | Y48: 10.39 | AA48: =365*0.781 -> 285.065 | AB48: =AB47/0.964 -> 505.2904564 | AE48: 1141 | AF48: 1615.0215 | AH48: 0.06 | AI48: 0.44 | AJ48: 2.6 | AK48: 0
A49: 杭州市余杭区 | B49: 2016 | C49: 1411.62 | D49: 3.5 | E49: 33.9 | F49: 62.6 | H49: 14.5867 | I49: 244.29 | J49: 221.5 | N49: 98.46 | O49: 1222 | P49: 1112 | Q49: 54 | T49: 1040.3247 | U49: 586.91 | V49: 701.19 | W49: 875.2 | X49: 433.16 | Y49: 10.4 | AA49: =366*(0.681) -> 249.246 | AE49: 1152 | AF49: 1461.4942 | AH49: 0.07 | AI49: 0.37 | AJ49: 1.95 | AK49: 0.11
A50: 杭州市余杭区 | B50: 2015 | C50: 1235.66 | D50: 3.8 | E50: 36.8 | F50: 59.4 | H50: 13.1712 | I50: 187.65 | J50: 167.8 | N50: 95.09 | O50: 1222 | P50: 1030 | Q50: 56.9 | T50: 920.0016 | U50: 466.45 | V50: 466 | W50: 489 | X50: 391.21 | Y50: 10.86 | AA50: =365*0.689 -> 251.485 | AE50: 1267 | AF50: 1476.3489 | AH50: 0.06 | AI50: 0.3 | AJ50: 0.92 | AK50: 0
A51: 杭州市余杭区 | B51: 2014 | C51: 1101.04 | D51: 4.1 | E51: 40.2 | F51: 55.7 | H51: 12.0413 | I51: 148.8 | J51: 137.12 | N51: 92.54 | O51: 1222 | P51: 992 | T51: 786.1506 | U51: 350.56 | V51: 386.57 | W51: 406.61 | X51: 315.48 | Y51: 10.78 | AA51: 177 | AE51: 1259 | AF51: 1492.2775 | AH51: 0.05 | AI51: 0.33 | AJ51: 1.11 | AK51: 0
A52: 杭州市富阳区 | B52: 2023 | C52: 960.9 | D52: 5.5 | E52: 42.2 | F52: 52.3 | G52: =C52/M52 -> 11.21236873 | H52: 13.7335 | I52: 100.5 | J52: 137.6 | L52: 8.7 | M52: 85.7 | N52: 70.1432 | O52: 1821 | T52: =T53*1.101 -> 723.2593413 | U52: =U53*1.19 -> 303.070985 | V52: 83 | W52: 162.5 | X52: 444.4 | Y52: 1.8536 | AA52: 341 | AB52: 63.5 | AE52: 764 | AH52: 0.06 | AI52: 0.79 | AJ52: 1.54 | AK52: 0.16
A53: 杭州市富阳区 | B53: 2022 | C53: 921.3 | D53: 5.5 | E53: 43.9 | F53: 50.6 | G53: 10.8568 | H53: 13.1734 | I53: 91.7 | J53: 135.7 | K53: 24.9926 | L53: 7.48 | M53: 85.1 | N53: 69.7888 | O53: 1821 | P53: 467 | R53: 16664 | T53: 656.9113 | U53: 254.6815 | V53: 61.4 | W53: =W52/1.151 -> 141.1815812 | X53: 438.2 | Y53: 3.5169 | AA53: 340 | AB53: 56.7 | AC53: =C53*0.0375 -> 34.54875 | AD53: 419700 | AE53: 725 | AF53: 1499.8034 | AH53: 0.06 | AI53: 0.79 | AJ53: 1.54 | AK53: 0.16
A54: 杭州市富阳区 | B54: 2021 | C54: 878.2 | D54: 5.7 | E54: 44 | F54: 50.3 | G54: 10.505 | H54: 12.6725 | I54: 105 | J54: 117.998 | K54: 23.9644 | L54: 6.5068 | M54: 83.9 | N54: 69.49 | O54: 1821 | P54: 461 | R54: 16049 | T54: 561.6841 | U54: 238.1489 | V54: 176.4671 | W54: 391.5195 | X54: 417.4 | Y54: 3.3897 | AA54: 337 | AB54: 164.6491 | AC54: =C54*0.036 -> 31.6152 | AD54: 445100 | AE54: 690 | AF54: 1418.7201 | AH54: 0.07 | AI54: 0.53 | AJ54: 2.34 | AK54: 0.29
A55: 杭州市富阳区 | B55: 2020 | C55: 807.6 | D55: 6.2 | E55: 44.3 | F55: 49.5 | G55: 9.7654 | H55: 11.7112 | I55: 90.1 | J55: 102.515 | K55: 23.7423 | L55: 5.639 | M55: 83.3 | N55: 69.11 | O55: 1821 | P55: 457 | R55: 17439 | T55: 412.3077 | U55: 184.5175 | V55: 163.4126 | W55: 339.8082 | X55: 382.1013 | Y55: 3.108 | AA55: 352 | AB55: 146.1266 | AC55: =C55*0.035 -> 28.266 | AD55: 470177 | AE55: 616 | AF55: 1155.4518 | AH55: 0.07 | AI55: 0.6 | AJ55: 2.08 | AK55: 0.27
A56: 杭州市富阳区 | B56: 2019 | C56: 800.4 | D56: 6.2 | E56: 45.2 | F56: 48.9 | G56: 9.8568 | H56: 11.6713 | I56: 80 | J56: 105.5038 | K56: 21.8846 | L56: 5.6338 | M56: 82.1 | N56: 68.81 | O56: 1821 | P56: 409 | R56: 15453 | T56: 315.5029 | U56: 131.1502 | V56: 131.0317 | W56: 244.6885 | X56: 379.7291 | Y56: 3.1747 | AA56: 336 | AB56: 113.6544 | AD56: 586414 | AE56: 632 | AF56: 1334.3676 | AH56: 0.06 | AI56: 1.39 | AJ56: 0 | AK56: 0.14
A57: 杭州市富阳区 | B57: 2018 | C57: 749.5 | D57: 6 | E57: 46.5 | F57: 47.5 | G57: 9.3926 | H57: 11.0171 | I57: 72.7 | J57: 72.9998 | K57: 20.0409 | L57: 3.871 | M57: 80.3 | N57: 68.35 | O57: 1821 | P57: 407 | T57: 258.6432 | U57: 129.8834 | V57: 129.6578 | W57: 225.0173 | X57: 270.5 | Y57: 2.8903 | AA57: 328 | AB57: 110.9243 | AC57: =C57*0.0218 -> 16.3391 | AD57: 681454 | AE57: 622 | AF57: 1373.2106 | AH57: 0.04 | AI57: 0.27 | AJ57: 2.25 | AK57: 0.23
A58: 杭州市富阳区 | B58: 2017 | C58: 724.6171 | G58: 9.184 | H58: 10.7443 | I58: 63.702 | J58: 66.2997 | K58: 18.6091 | L58: 3.4822 | M58: 79.3 | N58: 67.72 | O58: 1808 | P58: 409 | T58: 340.6491 | U58: 106.0677 | V58: 110.6885 | W58: 147.3764 | X58: 250.5 | Y58: 3.2462 | AA58: 336 | AB58: 83.707 | AC58: =C58*0.0212 -> 15.36188252 | AD58: 695227 | AE58: 644 | AF58: 1273.7908 | AH58: 0.04 | AI58: 0.54 | AJ58: 1.49 | AK58: 0
A59: 杭州市富阳区 | B59: 2016 | C59: 696.316 | G59: 8.8929 | H59: 10.3967 | I59: 57.6102 | J59: 66.1607 | K59: 17.6693 | L59: 3.4916 | M59: 78.5 | N59: 67.16 | O59: 1808 | P59: 407 | T59: 404.3949 | U59: 107.3058 | V59: 110.6192 | W59: 128.4345 | X59: 222.5 | Y59: 2.9141 | AA59: 318 | AB59: 104.8113 | AD59: 616161 | AE59: 641 | AF59: 1176.7415 | AH59: 0.06 | AI59: 0.39 | AJ59: 1.58 | AK59: 0.29
A60: 杭州市富阳区 | B60: 2015 | C60: 657.7825 | G60: 8.4548 | H60: 9.8622 | I60: 54.3226 | J60: 69.0049 | K60: 19.2603 | L60: 2.9976 | M60: 78.1 | N60: 66.79 | O60: 1808 | P60: 406 | T60: 403.7889 | U60: 97.017 | V60: 59.28 | W60: 70.5013 | X60: 198.0415 | Y60: 2.8212 | AA60: 302 | AB60: 55.7875 | AC60: =C60*0.021 -> 13.8134325 | AD60: 577120 | AE60: 665 | AF60: 1271.8175 | AH60: 0.03 | AI60: 0.39 | AJ60: 0.42 | AK60: 0
A61: 杭州市富阳区 | B61: 2014 | C61: 611.5366 | G61: 7.9575 | H61: 9.2329 | I61: 49.6002 | J61: 57.6968 | K61: 17.3408 | L61: 2.6417 | M61: 77.5 | N61: 66.61 | O61: 1808 | P61: 403 | T61: 350.0717 | U61: 95.5248 | V61: 56.695 | W61: 59.3059 | X61: 170.7917 | Y61: 3.2012 | AA61: 262 | AB61: 50.2965 | AC61: =C61*0.03 -> 18.346098 | AD61: 604890 | AE61: 668 | AF61: 1297.4658 | AH61: 0.03 | AI61: 0.36 | AJ61: 0.56 | AK61: 0
A62: 杭州市临安区 | B62: 2023 | C62: 686.45 | D62: 6.9 | E62: 49.4 | F62: 43.7 | G62: 10.5608 | H62: =C62/N62 -> 12.58617528 | I62: 87.6 | J62: 105.68 | K62: 20.1 | M62: 65.2 | N62: 54.54 | O62: 3119 | P62: 190 | Q62: 61.2 | T62: =T63*0.682 -> 437.8078605 | U62: =U63*0.504 -> 160.47864 | V62: 55.18 | W62: 98.61 | X62: 246.18 | Y62: 2.2 | AA62: 328 | AC62: =C62*0.0356 -> 24.43762 | AH62: 0.07 | AI62: 0.52 | AJ62: 1.66 | AK62: 0
A63: 杭州市临安区 | B63: 2022 | C63: 672.34 | D63: 7 | E63: 50.7 | F63: 42.3 | G63: 10.4239 | H63: =C63/N63 -> 12.38195212 | I63: 83.99 | J63: 106.18 | K63: =K62/1.052 -> 19.10646388 | L63: 4.94 | M63: 64.8 | N63: 54.3 | O63: 3119 | P63: =M63*10000/O63 -> 207.7588971 | R63: 12776 | T63: =T64*1.07 -> 641.9470095 | U63: 318.41 | V63: 79.7 | W63: 155.55 | X63: 224.28 | Y63: 2.02 | AA63: 329 | AC63: =C63*0.0356 -> 23.935304 | AE63: 733 | AF63: 1306.4109 | AH63: 0.07 | AI63: 0.52 | AJ63: 1.66 | AK63: 0
A64: 杭州市临安区 | B64: 2021 | C64: 658.35 | D64: 6.9 | E64: 50.4 | F64: 42.7 | G64: =C64/M64 -> 10.2546729 | H64: 12.1638 | I64: 90.39 | J64: 103.7 | L64: 4.23 | M64: 64.2 | N64: 54.22 | O64: 3119 | P64: =M64*10000/O64 -> 205.8352036 | R64: 12083 | T64: =T65*1.146 -> 599.9504761 | U64: 313.51 | V64: 230.5 | W64: 484.81 | X64: 212.68 | Y64: 2.63 | AA64: 346 | AC64: =C64*0.0334 -> 21.98889 | AE64: 708 | AF64: 1245.4624 | AH64: 0.07 | AI64: 0.3 | AJ64: 2.06 | AK64: 0.18
A65: 杭州市临安区 | B65: 2020 | C65: 600.41 | D65: 7.7 | E65: 46.6 | F65: 45.7 | G65: =C65/M65 -> 9.455275591 | H65: 11.121 | I65: 68.56 | J65: 90.47 | L65: 3.62 | M65: =M64-0.7 -> 63.5 | N65: 54.03 | O65: 3119 | P65: 204 | R65: 11378 | T65: =T66*1.245 -> 523.5169949 | U65: 278.01 | V65: 268.87 | W65: 520.45 | X65: 190.92 | Y65: 1.88 | AA65: 350 | AC65: =C65*0.0342 -> 20.534022 | AE65: 656 | AF65: 996.1411 | AH65: 0.06 | AI65: 0.2 | AJ65: 1.85 | AK65: 0.14
A66: 杭州市临安区 | B66: 2019 | C66: 572.94 | D66: 8 | E66: 44.9 | F66: 47.1 | G66: =C66/M66 -> 9.613087248 | H66: 10.6389 | I66: 61.16 | J66: 85.62 | L66: 5.06 | M66: 59.6 | N66: 53.95 | O66: 3119 | P66: 191 | R66: 11456 | T66: =T67*1.302 -> 420.4955782 | U66: 191.53 | V66: 218 | W66: 372.02 | X66: =X65/0.93 -> 205.2903226 | Y66: 2.01 | AA66: 341 | AC66: =C66*0.0289 -> 16.557966 | AE66: 607 | AF66: 886.8494 | AH66: 0.06 | AI66: 0.38 | AJ66: 1.55 | AK66: 0.15
A67: 杭州市临安区 | B67: 2018 | C67: 519.59 | D67: 8.3 | E67: 44.8 | F67: 46.9 | G67: =C67/M67 -> 8.762057336 | H67: =C67/N67 -> 9.66499256 | I67: 53.17 | J67: 74.22 | L67: 4.4 | M67: 59.3 | N67: 53.76 | O67: 3119 | P67: 190 | T67: =T68*1.112 -> 322.9612736 | U67: 129.5 | V67: 141.81 | W67: 200.52 | X67: 199.63 | Y67: 2.17 | AA67: 324 | AC67: =539.63*0.0229 -> 12.357527 | AE67: 598 | AF67: 805.3843 | AH67: 0.05 | AI67: 0.23 | AJ67: 1.61 | AK67: 0.07
A68: 杭州市临安区 | B68: 2017 | C68: 572.73 | O68: 3124 | P68: 189 | T68: 290.4328 | AA68: 333 | AE68: 597 | AF68: 741.0902 | AH68: 0.04 | AI68: 0.31 | AJ68: 1.75 | AK68: 0.09
A69: 杭州市临安区 | B69: 2016 | O69: 3124 | P69: 188 | T69: 265.9669 | AA69: 312 | AE69: 605 | AF69: 697.3267 | AH69: 0.04 | AI69: 0.08 | AJ69: 0.17 | AK69: 0.13
A70: 杭州市临安区 | B70: 2015 | O70: 3124 | P70: 188 | T70: 231.2053 | AA70: 291 | AE70: 607 | AF70: 682.7161 | AH70: 0.04 | AI70: 0.24 | AJ70: 0.31 | AK70: 0.04
A71: 杭州市临安区 | B71: 2014 | O71: 3124 | P71: 185 | T71: 197.5132 | AA71: 267 | AE71: 593 | AF71: 683.7874 | AH71: 0.04 | AI71: 0.31 | AJ71: 0.32 | AK71: 0.03
A72: 杭州市桐庐县 | B72: 2023 | C72: 469.23 | D72: 6.1 | E72: 45.8 | F72: 48.1 | H72: 11.2041 | I72: 45.03 | J72: 72.8 | K72: 21.8 | L72: 5.16 | M72: 45.9 | N72: 41.83 | O72: 1829 | P72: =M72*10000/O72 -> 250.956807 | Q72: =227231*100/418326 -> 54.31911954 | T72: =T73*1.118 -> 482.4292636 | U72: 47.87 | V72: 22.94 | W72: 36.32 | X72: 173.85 | Y72: 0.92 | AA72: 340 | AB72: 20.87 | AE72: 407 | AF72: 581.72 | AH72: 0.04 | AI72: 0.23 | AJ72: 0.76 | AK72: 0.13
A73: 杭州市桐庐县 | B73: 2022 | C73: 441.51 | D73: 6.2 | E73: 47.4 | F73: 46.4 | H73: 10.2901 | I73: 41.49 | J73: 75.17 | K73: 21.21 | L73: 4.47 | M73: 45.8 | N73: 41.93 | O73: 1829 | P73: =M73*10000/O73 -> 250.4100601 | Q73: =226945*100/419276 -> 54.12782988 | R73: 11772 | T73: =T74*1.181 -> 431.5109692 | U73: 62.2 | V73: 30.66 | W73: 51.13 | X73: 166.99 | Y73: 1.93 | AA73: 340 | AB73: 29.67 | AC73: 10.79 | AE73: 397 | AF73: 590.6063 | AH73: 0.04 | AI73: 0.23 | AJ73: 0.76 | AK73: 0.13
A74: 杭州市桐庐县 | B74: 2021 | C74: 414.9043 | D74: 6.4 | E74: 46.4 | F74: 47.2 | G74: 9.1288 | H74: 9.8971 | I74: 38.3973 | J74: 61.2469 | K74: 17.1807 | L74: 3.6297 | M74: 45.5 | N74: 41.9217 | O74: 1829 | P74: =M74*10000/O74 -> 248.7698196 | Q74: =225842*100/419217 -> 53.87233819 | R74: 11371 | T74: =T75*1.295 -> 365.37762 | U74: 59.1767 | V74: 46.97 | W74: 74.48 | X74: 158.6157 | Y74: 2.59 | AA74: 354 | AB74: 42.06 | AC74: 9.39 | AD74: 168964 | AE74: 386 | AF74: 521.203 | AH74: 0.06 | AI74: 0.25 | AJ74: 1.34 | AK74: 0.1
A75: 杭州市桐庐县 | B75: 2020 | C75: 371.7727 | D75: 6.8 | E75: 44.7 | F75: 48.5 | G75: 8.2342 | H75: 8.8726 | I75: 34.2245 | J75: 56.4082 | K75: 15.0977 | L75: 3.0285 | M75: 45.4 | N75: 41.922 | O75: 1829 | P75: 248 | Q75: =219669*100/419220 -> 52.39945613 | R75: 11159 | T75: =T76*1.234 -> 282.1448803 | U75: 36.9779 | V75: 39.88 | W75: 67.07 | X75: 137.4378 | Y75: 1.42 | AA75: 359 | AB75: 35.27 | AC75: 7.74 | AD75: 149698 | AE75: 355 | AF75: 439.3675 | AH75: 0.05 | AI75: 0.38 | AJ75: 0.99 | AK75: 0.11
A76: 杭州市桐庐县 | B76: 2019 | C76: 379.02 | D76: 6.6 | E76: 45 | F76: 48.4 | G76: 8.5174 | H76: 9.0678 | I76: 33.77 | J76: 50.2 | K76: 13.04 | L76: 2.67 | M76: 44.9 | N76: 41.8803 | O76: 1829 | P76: 238 | Q76: =212186*100/418803 -> 50.66487107 | R76: 11246 | T76: =T77*1.187 -> 228.6425286 | U76: =U75*0.776 -> 28.6948504 | V76: 36.3 | W76: 57.57 | X76: 145.8 | Y76: 1.7 | AA76: 348 | AB76: 27.68 | AD76: 153725 | AE76: 324 | AF76: 429.1999 | AH76: 0.04 | AI76: 0.19 | AJ76: 1.13 | AK76: 0.12
A77: 杭州市桐庐县 | B77: 2018 | C77: 365.68 | D77: 6.4 | E77: 46.6 | F77: 47 | I77: 30.67 | J77: 36.46 | K77: 11.26 | M77: 43.2 | N77: 41.72 | O77: 1829 | P77: 236 | Q77: =201163*100/417174 -> 48.22040683 | T77: =T78*0.903 -> 192.6221808 | U77: =U78*1.139 -> 0 | V77: 40.76 | W77: 49.04 | X77: 167.9 | Y77: 2.13 | AA77: 328 | AB77: 24.77 | AE77: 292 | AF77: 377.7189 | AH77: 0.05 | AI77: 0.1 | AJ77: 1.44 | AK77: 0.06
A78: 杭州市桐庐县 | B78: 2017 | C78: 352.08 | O78: 1780 | P78: 241 | T78: 213.3136 | AA78: 324 | AE78: 338 | AF78: 391.2387 | AH78: 0.06 | AI78: 0.15 | AJ78: 0.53 | AK78: 0.05
A79: 杭州市桐庐县 | B79: 2016 | C79: 332.25 | O79: 1780 | P79: 238 | T79: 253.4994 | AA79: 260 | AE79: 332 | AF79: 478.536 | AH79: 0.04 | AI79: 0.14 | AJ79: 0.24 | AK79: 0.05
A80: 杭州市桐庐县 | B80: 2015 | C80: 310.45 | O80: 1780 | P80: 237 | T80: 247.2662 | AA80: 322 | AE80: 400 | AF80: 499.6692 | AH80: 0.04 | AI80: 0.14 | AJ80: 0.24 | AK80: 0.08
A81: 杭州市桐庐县 | B81: 2014 | C81: 285.58 | O81: 1780 | P81: 231 | T81: 209.6371 | AA81: 283 | AE81: 376 | AF81: 473.5006 | AH81: 0.04 | AI81: 0.09 | AJ81: 0.22 | AK81: 0.04
A82: 杭州市淳安县 | B82: 2023 | C82: 280.49 | D82: 15.8 | E82: 27.1 | F82: 57.1 | G82: 8.684 | H82: =C82/N82 -> 6.276615027 | I82: 26.99 | J82: 89.41 | K82: 14.74 | M82: 32.1 | N82: 44.6881 | O82: 4427 | P82: =M82*10000/O82 -> 72.50960018 | Q82: 52.3 | T82: =T83*1.107 -> 138.1735922 | U82: =U83*0.787 -> 30.13423 | V82: 20.13 | W82: 23.9 | X82: 109.42 | Y82: 0.1216 | AA82: 355 | AF82: 123.81 | AH82: 0.05 | AI82: 0.07 | AJ82: 0.78 | AK82: 0.13
A83: 杭州市淳安县 | B83: 2022 | C83: 269.51 | D83: 15.7 | E83: 26.5 | F83: 57.8 | G83: 8.2545 | H83: 5.9692 | I83: 23.92 | J83: 80.71 | K83: 11.84 | L83: 1.4978 | M83: 32.5 | N83: 45.0242 | O83: 4427 | P83: =M83*10000/O83 -> 73.4131466 | R83: 15311 | T83: =T84*1.152 -> 124.8180598 | U83: 38.29 | V83: 25.57 | W83: 32.71 | X83: 94.04 | Y83: 0.6063 | AA83: 359 | AB83: 21.81 | AD83: 68680 | AE83: 92 | AF83: 115.3301 | AH83: 0.05 | AI83: 0.07 | AJ83: 0.78 | AK83: 0.13
A84: 杭州市淳安县 | B84: 2021 | C84: 255.17 | D84: 15.8 | E84: 25 | F84: 59.2 | G84: 7.8833 | H84: 5.6983 | I84: 25.94 | J84: 77.37 | K84: 10.28 | L84: 1.2852 | M84: 32.8 | N84: 45.2763 | O84: 4427 | P84: =M84*10000/O84 -> 74.09080642 | R84: 15009 | T84: =T85*0.852 -> 108.3490103 | U84: 43.51 | V84: 32.11 | W84: 43.9 | X84: 90.03 | Y84: 0.3326 | AA84: 356 | AB84: 29.11 | AD84: 66858 | AE84: 97 | AF84: 106.0717 | AH84: 0.04 | AI84: 0.18 | AJ84: 0.73 | AK84: 0.13
A85: 杭州市淳安县 | B85: 2020 | C85: 240.34 | D85: 38.34 | E85: 63 | F85: 139 | G85: 7.3026 | H85: 5.2604 | I85: 22.77 | J85: 76.68 | K85: 9.47 | L85: 1.1163 | M85: 32.9 | N85: 45.616 | O85: 4418 | P85: 74 | R85: 14952 | T85: =T86*0.926 -> 127.1701998 | U85: 36.45 | V85: 31.79 | W85: 43.43 | X85: 83.74 | Y85: 0.111 | AA85: 351 | AB85: 29.37 | AD85: 63895.6 | AE85: 83 | AF85: 85.0108 | AH85: 0.03 | AI85: 0.08 | AJ85: 0.61 | AK85: 0.09
A86: 杭州市淳安县 | B86: 2019 | C86: 256.13 | D86: 38.14 | E86: 78.16 | F86: 139.83 | G86: 7.7263 | H86: 5.5781 | I86: 21.0871 | J86: 68.8654 | K86: 8.12 | L86: 1.0952 | M86: 33 | N86: 45.87 | O86: 4418 | P86: 81 | R86: 15097 | T86: =T87*0.922 -> 137.3328292 | U86: 25.79 | V86: 25.33 | W86: 36.51 | X86: 83.99 | Y86: 0.2003 | AA86: 334 | AB86: 24.48 | AD86: 71047.88 | AE86: 88 | AF86: 109.9047 | AH86: 0.03 | AI86: 0.2 | AJ86: 0.73 | AK86: 0.04
A87: 杭州市淳安县 | B87: 2018 | C87: 236.0602 | D87: 15.24522135 | E87: 36.00428445 | F87: 89.36005687 | G87: =$C87/M87 -> 7.088894895 | H87: =C87/N87 -> 5.13561752 | I87: 19.4962 | J87: 67.1781 | K87: 7.9504 | L87: 1.0714 | M87: 33.3 | N87: 45.9653 | O87: 4418 | P87: 81 | T87: =T88*0.854 -> 148.9510078 | U87: 35.67 | V87: 52.66 | W87: 72.7 | X87: 77.6184 | Y87: 0.2141 | AA87: 331 | AB87: 50.54 | AD87: 67891.38 | AE87: 85 | AF87: 104.0361 | AH87: 0.04 | AI87: 0.16 | AJ87: 0.93 | AK87: 0
A88: 杭州市淳安县 | B88: 2017 | C88: 229.7029 | D88: 14.99911407 | E88: 39.98274003 | F88: 88.65272447 | G88: =$C88/M88 -> 6.877332335 | H88: =C88/N88 -> 4.985207338 | I88: 17.2688 | J88: 57.3686 | K88: 7.945 | L88: 1.0678 | M88: 33.4 | N88: 46.0769 | O88: 4452 | P88: 79 | T88: 174.4157 | U88: 43.5924 | V88: 44.2 | W88: 38.2462 | X88: 70.8174 | Y88: 0.3375 | AA88: 330 | AB88: 41.2 | AD88: 66739.38 | AE88: 117 | AF88: 188.1302 | AH88: 0.04 | AI88: 0.08 | AJ88: 0.67 | AK88: 0.17
A89: 杭州市淳安县 | B89: 2016 | C89: 217.1128 | D89: 15.15940101 | E89: 43.85151341 | F89: 87.21640473 | G89: =$C89/M89 -> 6.461690476 | H89: =C89/N89 -> 4.713040307 | I89: 17.3613 | J89: 60.0733 | K89: 8.8862 | L89: 1.067 | M89: 33.6 | N89: 46.0664 | O89: 4452 | P89: 79 | T89: 160.3624 | U89: 39.5855 | V89: 43.14 | W89: 36.5878 | X89: 62.9661 | Y89: 0.1264 | AA89: 341 | AB89: 42.11 | AD89: 60857.29 | AE89: 121 | AF89: 252.0175 | AH89: 0.04 | AI89: 0.08 | AJ89: 0.41 | AK89: 0.08
A90: 杭州市淳安县 | B90: 2015 | C90: 199.8645 | D90: 0.0003841842289 | E90: 99.99889494 | F90: 99.99956577 | G90: =$C90/M90 -> 5.878367647 | H90: =C90/N90 -> 4.350403556 | I90: 15.9804 | J90: 50.6065 | K90: 8.6672 | L90: 0.9871 | M90: 34 | N90: 45.9416 | O90: 4452 | P90: 78 | T90: 151.2184 | U90: 44.2009 | V90: 29.32 | W90: 21.2378 | X90: 56.1579 | Y90: 0.3547 | AA90: 324 | AB90: 29.32 | AE90: 126 | AF90: 250.763 | AH90: 0.02 | AI90: 0.14 | AJ90: 0.4 | AK90: 0
A91: 杭州市淳安县 | B91: 2014 | C91: 185.4661 | D91: 16.11431086 | E91: 50.52564732 | F91: 82.68885005 | G91: =$C91/M91 -> 5.407174927 | H91: =C91/N91 -> 4.040330082 | I91: 13.8599 | J91: 43.5595 | K91: 8.1734 | L91: 0.9628 | M91: 34.3 | N91: 45.9037 | O91: 4452 | P91: 77 | T91: 145.0503 | U91: 51.8845 | V91: 27.1 | W91: 22.3 | X91: 49.8495 | Y91: 0.6805 | AA91: 293 | AE91: 126 | AF91: 249.4147 | AH91: 0.02 | AI91: 0.12 | AJ91: 0.41 | AK91: 0.11
A92: 杭州市建德市 | B92: 2023 | C92: 450.11 | D92: 8.8 | E92: 47.5 | F92: 43.7 | G92: =C92/M92 -> 10.16049661 | H92: 8.9307 | I92: 47.59 | J92: 87.42 | L92: =L93*1.18 -> 4.172716 | M92: 44.3 | N92: 50.2521 | O92: 2314.42 | P92: =M92*10000/O92 -> 191.4086467 | Q92: 54.3 | R92: 19266 | S92: 10.6 | T92: =T93*1.161 -> 231.4535194 | U92: =U93*0.618 -> 23.96200515 | V92: 9.29 | W92: 13.06 | X92: 136.01 | Y92: 0.55 | AA92: 354 | AB92: 8.52 | AH92: 0.04 | AI92: 0.44 | AJ92: 2.27 | AK92: 0.12
A93: 杭州市建德市 | B93: 2022 | C93: 433.54 | D93: 9.4 | E93: 50.7 | F93: 39.9 | G93: 9.7425 | H93: 8.5596 | I93: 41.17 | J93: 78.55 | K93: 12.4124 | L93: 3.5362 | M93: 44.6 | N93: 50.5478 | O93: 2314.42 | P93: 192.7048677 | Q93: =Q92-0.8 -> 53.5 | R93: 19266 | S93: 10.6 | T93: =T94*0.823 -> 199.3570365 | U93: =U94*0.904 -> 38.77347112 | V93: 19.27 | W93: 21.37 | X93: 129 | Y93: 1.4 | AA93: 349 | AB93: 17.27 | AE93: 415 | AF93: 696.2602 | AH93: 0.04 | AI93: 0.44 | AJ93: 2.27 | AK93: 0.12
A94: 杭州市建德市 | B94: 2021 | C94: 425.52 | D94: 9.1 | E94: 51.5 | F94: 39.4 | G94: 9.7091 | H94: =C94/N94 -> 8.384465331 | I94: 38.5 | J94: 63.67 | K94: 11.4442 | L94: 3.0705 | M94: 44.4 | N94: 50.751 | O94: 2314.42 | P94: 191.8407204 | R94: 19210 | S94: 10.6 | T94: =T95*0.877 -> 242.2321221 | U94: =U95*1.035 -> 42.89100787 | V94: 46.3 | W94: 59.54 | X94: 126.06 | Y94: 1.3 | AA94: 356 | AB94: 42.92 | AD94: 328485 | AE94: 392 | AF94: 655.1612 | AH94: 0.04 | AI94: 0.3 | AJ94: 1.25 | AK94: 0.15
A95: 杭州市建德市 | B95: 2020 | C95: 388.71 | D95: 9.5 | E95: 48.1 | F95: 42.4 | G95: 8.8559 | H95: =C95/N95 -> 7.623244512 | I95: 34.23 | J95: 59.32 | K95: 10.5367 | L95: 2.6676 | M95: =M94/1.002 -> 44.31137725 | N95: 50.9901 | O95: 2314.42 | P95: 191.4578047 | R95: 18916 | S95: 10.6 | T95: =T96*0.901 -> 276.2053844 | U95: =U96*0.919 -> 41.44058732 | V95: 54.09 | W95: 66.57 | X95: 114.07 | Y95: 1.15 | AA95: 359 | AB95: 49.89 | AE95: 366 | AF95: 507.4049 | AH95: 0.03 | AI95: 0.45 | AJ95: 0.99 | AK95: 0.08
A96: 杭州市建德市 | B96: 2019 | C96: 377.87 | D96: 9.4 | E96: 48.2 | F96: 42.4 | G96: =C96/M96 -> 8.453467562 | H96: =C96/N96 -> 7.399103578 | I96: 31.1 | J96: 54.15 | K96: 9.6314 | L96: 2.6304 | M96: 44.7 | N96: 51.0697 | O96: 2314.42 | P96: 193.1369414 | R96: 18844 | S96: 10.6 | T96: =T97*1.127 -> 306.5542557 | U96: =U97*1.083 -> 45.09313092 | V96: 38.86 | W96: 43.21 | X96: =X95/0.993 -> 114.8741188 | Y96: 1.49 | AA96: 350 | AB96: 34.3 | AE96: 302 | AF96: 451.1089 | AH96: 0.03 | AI96: 1.1 | AJ96: 1.86 | AK96: 0.12
A97: 杭州市建德市 | B97: 2018 | C97: 353.07 | D97: 9.5 | E97: 46.8 | F97: 43.7 | G97: 7.916367713 | H97: =C97/N97 -> 6.906906319 | I97: 28.27 | J97: 47.71 | K97: 9.0001 | L97: 2.0271 | M97: 44.6 | N97: 51.1184 | O97: 2314.42 | P97: 192.7048677 | S97: 10.6 | T97: =T98*1.186 -> 272.0091 | U97: =U98*2.556 -> 41.63724 | V97: 58.51 | W97: 69.05 | X97: 139.37 | Y97: 1.46 | AA97: 346 | AB97: 53.82 | AE97: 308 | AF97: 408.7247 | AH97: 0.03 | AI97: 0.11 | AJ97: 0.42 | AK97: 0.07
A98: 杭州市建德市 | B98: 2017 | C98: 337.45 | D98: 8.9 | E98: 48.5 | F98: 42.6 | G98: 7.583146067 | H98: 7.6498 | I98: 24.4 | J98: 44.99 | M98: 44.5 | N98: 51.0833 | O98: 2364 | P98: 188.2402707 | S98: 10.6 | T98: 229.35 | U98: 16.29 | V98: 53.26 | W98: 49.38 | X98: 127.95 | Y98: 1.48 | AA98: 353 | AB98: 48.55 | AE98: 352 | AF98: 402.0244 | AH98: 0.02 | AI98: 0.06 | AJ98: 0.66 | AK98: 0
A99: 杭州市建德市 | B99: 2016 | C99: 324.23 | D99: 9.5 | E99: 50.6 | F99: 39.91 | G99: 7.253467562 | H99: 6.7816 | I99: 22.7059 | J99: 41.19 | M99: 44.7 | N99: 50.9552 | O99: 2364 | P99: 189.0862944 | S99: 10.6 | T99: 205.32 | U99: 24.52 | V99: 33.89 | W99: =W98/1.592 -> 31.01758794 | X99: 115.26 | Y99: 1.48 | AA99: 337 | AB99: 29.97 | AE99: 344 | AF99: 424.2487 | AH99: 0.03 | AI99: 0.08 | AJ99: 0.21 | AK99: 0
A100: 杭州市建德市 | B100: 2015 | C100: 308.85 | D100: 9.5 | E100: 52.4 | F100: 98.1 | G100: 6.917133259 | H100: 6.298 | I100: 21.1944 | J100: =J99/1.001 -> 41.14885115 | M100: 44.65 | N100: 50.8673 | O100: 2364 | P100: 188.8747885 | S100: 10.6 | T100: 175.87 | U100: 24.12 | V100: =V99/1.063 -> 31.88146754 | W100: =W99/1.177 -> 26.35309086 | X100: 104.48 | Y100: =Y99/1.049 -> 1.410867493 | AA100: 313 | AB100: =AB99/1.031 -> 29.06886518 | AE100: 356 | AF100: 418.3598 | AH100: 0.03 | AI100: 0.49 | AJ100: 0.18 | AK100: 0
A101: 杭州市建德市 | B101: 2014 | C101: 285.61 | D101: 9.56 | E101: 54.47 | F101: 35.96 | G101: 6.516313028 | H101: =C101/N101 -> 5.603283378 | I101: 18.7008 | L101: 5.38 | M101: 43.83 | N101: 50.9719 | O101: 2364 | P101: 185.4060914 | S101: 9.59 | T101: 143.29 | U101: 27.74 | X101: 87.66 | AA101: 299 | AE101: 358 | AF101: 423.3162 | AH101: 0.03 | AI101: 0.11 | AJ101: 0.18 | AK101: 0.06
